fUST/lending_fUST_20250627
["ID","MTS","AMOUNT","RATE_DAILY","PERIOD"]
[368114837,1751027462643,-166.08289693,0.00021644,2]
[368114838,1751027462652,-168.0,0.0002167,2]
[368114839,1751027462660,-3398.84,0.000217,2]
[368114840,1751027462670,-168.0,0.00021705,2]
[368114841,1751027462679,-151.0,0.00021739,4]
[368114842,1751027462688,-9378.13373988,0.00021762,5]
[368114843,1751027462698,-10400.39089948,0.00021769,2]
[368114844,1751027462707,-151.0,0.00021769,2]
[368114845,1751027462716,-225.065116,0.00021769,2]
[368114846,1751027462726,-151.0,0.0002178,2]
[368114847,1751027462735,-151.0,0.0002178,2]
[368114848,1751027462744,-151.0,0.0002178,2]
[368114849,1751027462753,-241.85373,0.0002178,2]
[368114850,1751027462764,-241.85373,0.0002178,2]
[368114851,1751027462774,-151.0,0.0002178,2]
[368114852,1751027462783,-154.536375,0.0002178,2]
[368114853,1751027462792,-2000.0,0.000218,2]
[368114854,1751027462802,-166.08289693,0.00021836,2]
[368114855,1751027462811,-168.0,0.00021866,2]
[368114856,1751027462820,-151.0,0.0002187,4]
[368114857,1751027462830,-151.0,0.00021887,2]
[368114858,1751027462839,-151.0,0.00021887,2]
[368114859,1751027462849,-884.001145,0.00021887,2]
[368114860,1751027462858,-884.001145,0.00021887,2]
[368114861,1751027462868,-151.0,0.00021887,2]
[368114862,1751027462878,-2731.0,0.00021891,2]
[368114863,1751027462887,-5454.23665273,0.00021892,2]
[368114864,1751027462896,-500.0,0.00021896,2]
[368114865,1751027462905,-628.24547751,0.000219,2]
[368114866,1751027462914,-18244.762,0.000219,3]
[368114867,1751027462924,-159.959375,0.000219,2]
[368114868,1751027462933,-151.0,0.000219,2]
[368114869,1751027462942,-151.0,0.000219,2]
[368114870,1751027462951,-151.0,0.000219,2]
[368114871,1751027462960,-151.0,0.000219,2]
[368114872,1751027462970,-151.0,0.000219,2]
[368114873,1751027462979,-151.0,0.000219,2]
[368114874,1751027462989,-151.0,0.000219,2]
[368114875,1751027462998,-151.0,0.000219,2]
[368114876,1751027463088,-524.32400359,0.000219,3]
[368114877,1751027463098,-153.0,0.00021902,2]
[368114878,1751027463108,-177.4788171,0.00021902,2]
[368114879,1751027463118,-159.2394861,0.00021902,2]
[368114880,1751027463128,-581.331883,0.00021902,2]
[368114881,1751027463137,-306.0,0.00021902,2]
[368114882,1751027463147,-177.4788171,0.00021902,2]
[368114883,1751027463156,-153.0,0.00021902,2]
[368114884,1751027463166,-159.2394861,0.00021902,2]
[368114885,1751027463175,-575.118961,0.00021902,2]
[368114886,1751027463185,-159.2394861,0.00021902,2]
[368114887,1751027463195,-153.0,0.00021902,2]
[368114888,1751027463205,-177.4788171,0.00021902,2]
[368114889,1751027463214,-575.118961,0.00021902,2]
[368114890,1751027463224,-159.2394861,0.00021902,2]
[368114891,1751027463234,-177.4788171,0.00021902,2]
[368114892,1751027463244,-153.0,0.00021902,2]
[368114893,1751027463254,-575.118961,0.00021902,2]
[368114894,1751027463266,-159.2394861,0.00021902,2]
[368114895,1751027463276,-153.0,0.00021902,2]
[368114896,1751027463286,-575.118961,0.00021902,2]
[368114897,1751027463295,-159.2394861,0.00021902,2]
[368114898,1751027463305,-177.4788171,0.00021902,2]
[368114899,1751027463315,-575.118961,0.00021902,2]
[368114900,1751027463324,-353.7831555,0.00021902,2]
[368114901,1751027463334,-159.2394861,0.00021902,2]
[368114902,1751027463343,-575.118961,0.00021902,2]
[368114903,1751027463353,-306.0,0.00021902,2]
[368114904,1751027463362,-5000.0,0.0002191,2]
[368114905,1751027463372,-160.35931239,0.00021916,2]
[368114906,1751027463382,-151.0,0.00021917,2]
[368114907,1751027463392,-203.79692233,0.00021917,2]
[368114908,1751027463401,-460.0,0.00021917,2]
[368114909,1751027463411,-460.0,0.00021917,2]
[368114910,1751027463420,-151.0,0.00021917,2]
[368114911,1751027463430,-151.0,0.00021917,2]
[368114912,1751027463440,-151.0,0.00021917,2]
[368114913,1751027463449,-868.8,0.00021917,2]
[368114914,1751027463459,-460.0,0.00021917,2]
[368114915,1751027463469,-460.0,0.00021917,2]
[368114916,1751027463479,-547.03226586,0.00021917,2]
[368114917,1751027463489,-151.0,0.00021917,2]
[368114918,1751027463498,-151.0,0.00021917,2]
[368114919,1751027463510,-460.0,0.00021917,2]
[368114920,1751027463520,-151.0,0.00021917,2]
[368114921,1751027463530,-460.0,0.00021917,2]
[368114922,1751027463539,-884.99,0.00021917,2]
[368114923,1751027463549,-151.0,0.00021917,2]
[368114924,1751027463559,-337.726261,0.00021917,2]
[368114925,1751027463569,-337.726261,0.00021917,2]
[368114926,1751027463578,-460.0,0.00021917,2]
[368114927,1751027463588,-516.86,0.00021917,2]
[368114928,1751027463598,-151.0,0.00021917,2]
[368114929,1751027463608,-151.0,0.00021917,2]
[368114930,1751027463617,-563.57,0.00021917,2]
[368114931,1751027463629,-262.401285,0.00021917,2]
[368114932,1751027463639,-251.499196,0.00021917,2]
[368114933,1751027463648,-262.401285,0.00021917,2]
[368114934,1751027463658,-2007.38,0.00021917,2]
[368114935,1751027463668,-1138.6,0.00021917,2]
[368114936,1751027463678,-460.0,0.00021917,2]
[368114937,1751027463701,-151.0,0.00021917,2]
[368114938,1751027463720,-2956.2,0.00021917,2]
[368114939,1751027463741,-7048.19,0.00021917,2]
[368114940,1751027463762,-460.0,0.00021917,2]
[368114941,1751027463782,-460.0,0.00021917,2]
[368114942,1751027463799,-460.0,0.00021917,2]
[368114943,1751027463818,-1332.79,0.00021917,2]
[368114944,1751027463832,-460.0,0.00021917,2]
[368114945,1751027463849,-249.895528,0.00021917,2]
[368114946,1751027463869,-249.895528,0.00021917,2]
[368114947,1751027463889,-857.83,0.00021917,2]
[368114948,1751027463902,-460.0,0.00021917,2]
[368114949,1751027463917,-875.94,0.00021917,2]
[368114950,1751027463936,-460.0,0.00021917,2]
[368114951,1751027463953,-512.06,0.00021917,2]
[368114952,1751027463969,-1879.18,0.00021917,2]
[368114953,1751027463984,-963.88,0.00021917,2]
[368114954,1751027464000,-706.48,0.00021917,2]
[368114955,1751027464017,-2249.58,0.00021917,2]
[368114956,1751027464032,-5580.76,0.00021917,2]
[368114957,1751027464048,-460.0,0.00021917,2]
[368114958,1751027464064,-151.0,0.00021917,2]
[368114959,1751027464079,-1858.16,0.00021917,2]
[368114960,1751027464094,-460.0,0.00021917,2]
[368114961,1751027464108,-151.0,0.00021917,2]
[368114962,1751027464122,-716.5,0.00021917,2]
[368114963,1751027464138,-151.0,0.00021917,2]
[368114964,1751027464153,-619.78,0.00021917,2]
[368114965,1751027464168,-495.44,0.00021917,2]
[368114966,1751027464183,-250.133199,0.00021917,2]
[368114967,1751027464199,-1103.54,0.00021917,2]
[368114968,1751027464214,-1121.1,0.00021917,2]
[368114969,1751027464228,-863.75,0.00021917,2]
[368114970,1751027464244,-423.03,0.00021917,2]
[368114971,1751027464260,-460.0,0.00021917,2]
[368114972,1751027464275,-2103.41,0.00021917,2]
[368114973,1751027464290,-460.0,0.00021917,2]
[368114974,1751027464307,-460.0,0.00021917,2]
[368114975,1751027464322,-2500.27,0.00021917,2]
[368114976,1751027464338,-652.23,0.00021917,2]
[368114977,1751027464352,-460.0,0.00021917,2]
[368114978,1751027464362,-2369.02,0.00021917,2]
[368114979,1751027464372,-624.87,0.00021917,2]
[368114980,1751027464382,-798.78,0.00021917,2]
[368114981,1751027464392,-460.0,0.00021917,2]
[368114982,1751027464402,-460.0,0.00021917,2]
[368114983,1751027464412,-3858.34,0.00021917,2]
[368114984,1751027464422,-1102.8,0.00021917,2]
[368114985,1751027464432,-460.0,0.00021917,2]
[368114986,1751027464442,-1269.52558259,0.00021917,2]
[368114987,1751027464495,-1902.55441741,0.00021917,2]
[368114988,1751027464506,-779.54,0.00021917,2]
[368114989,1751027464517,-460.0,0.00021917,2]
[368114990,1751027464729,-867.73,0.00021917,2]
[368114991,1751027464745,-6156.57,0.00021917,2]
[368114992,1751027464755,-742.84,0.00021917,2]
[368114993,1751027464767,-460.0,0.00021917,2]
[368114994,1751027464775,-500.0,0.00021917,2]
[368114995,1751027464784,-223.72194378,0.00021917,2]
[368114996,1751027464794,-460.0,0.00021917,2]
[368114997,1751027464805,-151.0,0.00021917,2]
[368114998,1751027464814,-4231.52,0.00021917,2]
[368114999,1751027464823,-460.0,0.00021917,2]
[368115000,1751027464832,-460.0,0.00021917,2]
[368115001,1751027464841,-750.91,0.00021917,2]
[368115002,1751027464851,-1846.1,0.00021917,2]
[368115003,1751027464860,-4008.72,0.00021917,2]
[368115004,1751027464869,-153.0,0.00021918,2]
[368115005,1751027464878,-153.0,0.00021918,2]
[368115006,1751027464887,-153.0,0.00021918,2]
[368115007,1751027464895,-153.0,0.00021918,2]
[368115008,1751027464904,-153.0,0.00021918,2]
[368115009,1751027464913,-153.0,0.00021918,2]
[368115010,1751027464922,-153.0,0.00021918,2]
[368115011,1751027464931,-153.0,0.00021918,2]
[368115012,1751027464941,-153.0,0.00021918,2]
[368115013,1751027464950,-153.0,0.00021918,2]
[368115014,1751027464959,-153.0,0.00021918,2]
[368115015,1751027464969,-153.0,0.00021918,2]
[368115016,1751027464978,-153.0,0.00021918,2]
[368115017,1751027464987,-153.0,0.00021918,2]
[368115018,1751027464996,-153.0,0.00021918,2]
[368115019,1751027465005,-153.0,0.00021918,2]
[368115020,1751027465016,-153.0,0.00021918,2]
[368115021,1751027465025,-153.0,0.00021918,2]
[368115022,1751027465034,-153.0,0.00021918,2]
[368115023,1751027465043,-153.0,0.00021918,2]
[368115024,1751027465052,-153.0,0.00021918,2]
[368115025,1751027465061,-153.0,0.00021918,2]
[368115026,1751027465070,-153.0,0.00021918,2]
[368115027,1751027465079,-153.0,0.00021918,2]
[368115028,1751027465088,-153.0,0.00021918,2]
[368115029,1751027465097,-153.0,0.00021918,2]
[368115030,1751027465106,-153.0,0.00021918,2]
[368115031,1751027465115,-153.0,0.00021918,2]
[368115032,1751027465125,-153.0,0.00021918,2]
[368115033,1751027465134,-153.0,0.00021918,2]
[368115034,1751027465143,-153.0,0.00021918,2]
[368115035,1751027465152,-153.0,0.00021918,2]
[368115036,1751027465161,-153.0,0.00021918,2]
[368115037,1751027465170,-153.0,0.00021918,2]
[368115038,1751027465179,-153.0,0.00021918,2]
[368115039,1751027465187,-153.0,0.00021918,2]
[368115040,1751027465196,-153.0,0.00021918,2]
[368115041,1751027465205,-153.0,0.00021918,2]
[368115042,1751027465214,-153.0,0.00021918,2]
[368115043,1751027465223,-153.0,0.00021918,2]
[368115044,1751027465231,-153.0,0.00021918,2]
[368115045,1751027465241,-153.0,0.00021918,2]
[368115046,1751027465250,-153.0,0.00021918,2]
[368115047,1751027465259,-153.0,0.00021918,2]
[368115048,1751027465269,-153.0,0.00021918,2]
[368115049,1751027465278,-153.0,0.00021918,2]
[368115050,1751027465287,-153.0,0.00021918,2]
[368115051,1751027465297,-153.0,0.00021918,2]
[368115052,1751027465307,-153.0,0.00021918,2]
[368115053,1751027465316,-153.0,0.00021918,2]
[368115054,1751027465325,-153.0,0.00021918,2]
[368115055,1751027465338,-153.0,0.00021918,2]
[368115056,1751027465347,-153.0,0.00021918,2]
[368115057,1751027465357,-153.0,0.00021918,2]
[368115058,1751027465366,-153.0,0.00021918,2]
[368115059,1751027465375,-153.0,0.00021918,2]
[368115060,1751027465385,-153.0,0.00021918,2]
[368115061,1751027465395,-153.0,0.00021918,2]
[368115062,1751027465404,-153.0,0.00021918,2]
[368115063,1751027465413,-153.0,0.00021918,2]
[368115064,1751027465423,-153.0,0.00021918,2]
[368115065,1751027465432,-153.0,0.00021918,2]
[368115066,1751027465441,-153.0,0.00021918,2]
[368115067,1751027465451,-153.0,0.00021918,2]
[368115068,1751027465463,-153.0,0.00021918,2]
[368115069,1751027465472,-153.0,0.00021918,2]
[368115070,1751027465482,-153.0,0.00021918,2]
[368115071,1751027465491,-153.0,0.00021918,2]
[368115072,1751027465500,-153.0,0.00021918,2]
[368115073,1751027465511,-153.0,0.00021918,2]
[368115074,1751027465521,-153.0,0.00021918,2]
[368115075,1751027465530,-153.0,0.00021918,2]
[368115076,1751027465539,-153.0,0.00021918,2]
[368115077,1751027465549,-153.0,0.00021918,2]
[368115078,1751027465558,-153.0,0.00021918,2]
[368115079,1751027465568,-153.0,0.00021918,2]
[368115080,1751027465577,-153.0,0.00021918,2]
[368115081,1751027465586,-153.0,0.00021918,2]
[368115082,1751027465596,-153.0,0.00021918,2]
[368115083,1751027465605,-153.0,0.00021918,2]
[368115084,1751027465614,-153.0,0.00021918,2]
[368115085,1751027465624,-153.0,0.00021918,2]
[368115086,1751027465636,-153.0,0.00021918,2]
[368115087,1751027465646,-153.0,0.00021918,2]
[368115088,1751027465655,-153.0,0.00021918,2]
[368115089,1751027465664,-153.0,0.00021918,2]
[368115090,1751027465674,-153.0,0.00021918,2]
[368115091,1751027465683,-153.0,0.00021918,2]
[368115092,1751027465692,-153.0,0.00021918,2]
[368115093,1751027465703,-153.0,0.00021918,2]
[368115094,1751027465712,-151.0,0.00021918,2]
[368115095,1751027465722,-166.0,0.00021918,2]
[368115096,1751027465731,-245.12783505,0.00021918,2]
[368115097,1751027465740,-154.8510693,0.00021918,2]
[368115098,1751027465749,-150.0,0.00021918,2]
[368115099,1751027465758,-151.0,0.00021918,7]
[368115100,1751027465771,-9378.13373988,0.00021934,6]
[368115101,1751027465781,-244.36759311,0.00021944,2]
[368115102,1751027465790,-500.0,0.00021973,2]
[368115103,1751027465800,-500.0,0.00021973,2]
[368115104,1751027465810,-500.0,0.00021973,2]
[368115105,1751027465820,-500.47190355,0.00021973,2]
[368115106,1751027465829,-500.0,0.00021973,2]
[368115107,1751027465838,-500.0,0.00021973,2]
[368115108,1751027465848,-500.0,0.00021973,2]
[368115109,1751027465858,-500.0,0.00021973,2]
[368115110,1751027465867,-500.0,0.00021973,2]
[368115111,1751027465876,-500.0,0.00021973,2]
[368115112,1751027465886,-500.56052383,0.00021973,2]
[368115113,1751027465895,-610.78167965,0.00021973,2]
[368115114,1751027465905,-500.0,0.00021973,2]
[368115115,1751027465917,-500.0,0.00021973,2]
[368115116,1751027465926,-500.0,0.00021973,2]
[368115117,1751027465935,-500.0,0.00021973,2]
[368115118,1751027465944,-500.0,0.00021973,2]
[368115119,1751027465954,-500.0,0.00021973,2]
[368115120,1751027465963,-503.72408779,0.00021973,2]
[368115121,1751027465973,-500.0,0.00021973,2]
[368115122,1751027465983,-500.0,0.00021973,2]
[368115123,1751027465992,-500.0,0.00021973,2]
[368115124,1751027466002,-500.0,0.00021973,2]
[368115125,1751027466014,-500.0,0.00021973,2]
[368115126,1751027466023,-500.85840275,0.00021973,2]
[368115127,1751027466032,-71.91227007,0.00021973,2]
[368115128,1751027466153,-428.08772993,0.00021973,2]
[368115129,1751027466163,-500.0,0.00021973,2]
[368115130,1751027466173,-500.0,0.00021973,2]
[368115131,1751027466183,-500.0,0.00021973,2]
[368115132,1751027466192,-500.0,0.00021973,2]
[368115133,1751027466201,-180.55111141,0.00021973,2]
[368115134,1751027466210,-500.0,0.00021973,2]
[368115135,1751027466219,-500.0,0.00021973,2]
[368115136,1751027466228,-500.0,0.00021973,2]
[368115137,1751027466238,-500.0,0.00021973,2]
[368115138,1751027466247,-500.0,0.00021973,2]
[368115139,1751027466258,-156.87501791,0.00021973,2]
[368115140,1751027466270,-500.0,0.00021973,2]
[368115141,1751027466279,-500.0,0.00021973,2]
[368115142,1751027466288,-217.57540393,0.00021973,2]
[368115143,1751027466410,-198.75652941,0.00019178,2]
[368115144,1751027466420,-373.56847059,0.00019178,2]
[368115145,1751027466431,-86.43152941,0.00019178,2]
[368115146,1751027466441,-460.0,0.00019452,2]
[368115147,1751027466450,-282.42459607,0.00021973,2]
[368115148,1751027466460,-500.0,0.00021973,2]
[368115149,1751027466470,-448.58830769,0.00021973,2]
[368115150,1751027466479,-500.0,0.00021973,2]
[368115151,1751027466490,-500.0,0.00021973,2]
[368115152,1751027466499,-500.0,0.00021973,2]
[368115153,1751027466509,-500.0,0.00021973,2]
[368115154,1751027466519,-159.02486868,0.00021973,2]
[368115155,1751027466529,-256.17916856,0.00021973,2]
[368115156,1751027466600,-460.0,0.00019178,2]
[368115157,1751027466610,-220.5898801,0.00019178,2]
[368115158,1751027466638,-239.4101199,0.00019178,2]
[368115159,1751027466648,-460.0,0.00019452,2]
[368115160,1751027466657,-151.0,0.00020547,2]
[368115161,1751027466667,-151.0,0.00021095,2]
[368115162,1751027466677,-148.3898801,0.00021769,2]
[368115163,1751027466689,-2.6101199,0.00021769,2]
[368115164,1751027466699,-243.82083144,0.00021973,2]
[368115165,1751027466709,-500.0,0.00021973,2]
[368115166,1751027466719,-500.0,0.00021973,2]
[368115167,1751027466728,-151.706756,0.00021973,7]
[368115168,1751027466738,-259.255317,0.00021973,7]
[368115169,1751027466747,-259.255317,0.00021973,7]
[368115170,1751027466756,-151.0,0.00021973,7]
[368115171,1751027466768,-151.0,0.00021973,7]
[368115172,1751027466777,-151.0,0.00021973,7]
[368115173,1751027466787,-1886.55165866,0.00021992,2]
[368115174,1751027466799,-313.44834134,0.00021992,2]
[368115175,1751027466808,-200.0,0.00021999,2]
[368115176,1751027466818,-3531.39025533,0.00022,2]
[368115177,1751027466931,-460.0,0.00019178,2]
[368115178,1751027466940,-500.0,0.00019178,2]
[368115179,1751027466949,-427.8,0.00019178,2]
[368115180,1751027466961,-72.2,0.00019178,2]
[368115181,1751027466970,-252.45567513,0.00019178,2]
[368115182,1751027466981,-355.92037699,0.00019178,2]
[368115183,1751027467099,-460.0,0.00019178,2]
[368115184,1751027467109,-460.0,0.00019452,2]
[368115185,1751027467118,-29621.35831296,0.00022,2]
[368115186,1751027467134,-460.0,0.00019726,2]
[368115187,1751027467143,-2902.69211979,0.00022,2]
[368115188,1751027467154,-7024.39551745,0.00022,2]
[368115189,1751027467165,-1233.39448729,0.00022,2]
[368115190,1751027467175,-49085.03997521,0.00022,2]
[368115191,1751027467915,4000.0,0.000191,2]
[368115194,1751027476498,5000.0,0.000191,2]
[368115198,1751027532358,3068.80969805,0.00018632,2]
[368115199,1751027532382,6931.19030195,0.00018632,2]
[368115200,1751027540775,167.560493,0.00013699,2]
[368115202,1751027562950,162.91172874,0.00019078,2]
[368115203,1751027619665,5000.0,0.000191,2]
[368115204,1751027635596,4427.0,0.000191,2]
[368115205,1751027664035,500.0,0.00024658,120]
[368115206,1751027793463,151.27517673,0.00019078,2]
[368115207,1751027888247,3160.06229958,0.00018358,2]
[368115208,1751027888270,20000.0,0.00018358,2]
[368115209,1751027888292,1739.93770042,0.00018358,2]
[368115210,1751027894018,207.454778,0.00018603,2]
[368115213,1751027993039,5000.0,0.000191,2]
[368115214,1751028013495,289.1968998,0.00019078,2]
[368115215,1751028023087,322.670033,0.00018358,2]
[368115216,1751028023389,1716.7670657,0.00018505,2]
[368115217,1751028025705,2000.0,0.00023,30]
[368115218,1751028028636,151.27517668,0.00019078,2]
[368115219,1751028047264,2000.0,0.00023,30]
[368115220,1751028059687,5000.0,0.000191,2]
[368115221,1751028076390,5000.0,0.000191,2]
[368115225,1751028121768,572.6983464,0.000191,2]
[368115226,1751028121794,4427.3016536,0.000191,2]
[368115228,1751028137759,5000.0,0.000191,2]
[368115230,1751028183394,5000.0,0.000191,2]
[368115231,1751028195913,234.28446,0.00018436,2]
[368115232,1751028196912,207.52179993,0.00018603,2]
[368115233,1751028258948,151.27517668,0.00019078,2]
[368115236,1751028283171,2000.0,0.00023,30]
[368115237,1751028294520,4979.61690979,0.0001829,2]
[368115238,1751028294543,11090.38245371,0.0001829,2]
[368115239,1751028365574,623.0,0.000191,2]
[368115240,1751028406411,265.9137825,0.00018315,2]
[368115241,1751028411575,8020.70376379,0.00019078,2]
[368115242,1751028411597,5911.35860797,0.00019078,2]
[368115243,1751028424920,5000.0,0.000191,2]
[368115244,1751028435103,-181.78,0.00019168,3]
[368115245,1751028435124,-545.39,0.00019168,3]
[368115246,1751028435147,-300.0,0.00019175,2]
[368115247,1751028435169,-0.14116315,0.00019176,2]
[368115248,1751028441087,-299.85883685,0.00019176,2]
[368115249,1751028441108,-1157.16983356,0.00019176,2]
[368115250,1751028474199,151.27517668,0.00019078,2]
[368115251,1751028484104,5000.0,0.000191,2]
[368115252,1751028498566,213.99998579,0.00018603,2]
[368115253,1751028544409,3723.36622956,0.000191,2]
[368115254,1751028544433,1276.63377044,0.000191,2]
[368115255,1751028546278,181.2169568,0.00018452,2]
[368115333,1751028638442,162.789369,0.00013699,2]
[368115334,1751028638605,-1200.0,0.00019176,2]
[368115335,1751028638615,-300.0,0.00019176,2]
[368115336,1751028638624,-1017.86666302,0.00019177,2]
[368115337,1751028638634,-500.0,0.00019177,2]
[368115338,1751028638643,-500.0,0.00019177,2]
[368115340,1751028638653,-327.95199748,0.00019177,2]
[368115342,1751028638662,-462.51408903,0.00019177,2]
[368115344,1751028638671,-500.0,0.00019177,2]
[368115347,1751028638681,-500.0,0.00019177,2]
[368115349,1751028638691,-500.0,0.00019177,2]
[368115351,1751028638700,-286.17313442,0.00019177,2]
[368115352,1751028638709,-460.0,0.00019178,2]
[368115353,1751028638718,-460.0,0.00019178,2]
[368115354,1751028638728,-460.0,0.00019178,2]
[368115355,1751028638737,-460.0,0.00019178,2]
[368115356,1751028638747,-398.23,0.00019178,2]
[368115358,1751028638757,-460.0,0.00019178,2]
[368115359,1751028638766,-460.0,0.00019178,2]
[368115361,1751028638775,-460.0,0.00019178,2]
[368115363,1751028638785,-365.33275755,0.00019178,2]
[368115365,1751028638795,-460.0,0.00019178,2]
[368115366,1751028638804,-466.56373465,0.00019178,2]
[368115367,1751028638813,-504.92818205,0.00019178,2]
[368115368,1751028638822,-460.37964859,0.00019178,2]
[368115369,1751028638831,-460.0,0.00019178,2]
[368115370,1751028638840,-432.11160188,0.00019178,2]
[368115371,1751028638850,-460.0,0.00019178,2]
[368115372,1751028638859,-505.45890377,0.00019178,2]
[368115373,1751028638869,-460.0,0.00019178,2]
[368115374,1751028638878,-460.0,0.00019178,2]
[368115375,1751028638887,-460.0,0.00019178,2]
[368115376,1751028638897,-401.47228451,0.00019178,2]
[368115377,1751028638906,-460.0,0.00019178,2]
[368115378,1751028638915,-310.23055379,0.00019178,2]
[368115379,1751028638924,-460.0,0.00019178,2]
[368115380,1751028638933,-460.0,0.00019178,2]
[368115381,1751028638943,-582.59050944,0.00019178,2]
[368115382,1751028638952,-460.0,0.00019178,2]
[368115383,1751028638962,-460.0,0.00019178,2]
[368115384,1751028638971,-404.67429433,0.00019178,2]
[368115385,1751028638980,-460.0,0.00019178,2]
[368115386,1751028638990,-460.0,0.00019178,2]
[368115387,1751028638999,-460.0,0.00019178,2]
[368115388,1751028639008,-460.0,0.00019178,2]
[368115389,1751028639018,-460.0,0.00019178,2]
[368115390,1751028639027,-460.0,0.00019178,2]
[368115391,1751028639036,-460.0,0.00019178,2]
[368115392,1751028639045,-463.0993919,0.00019178,2]
[368115393,1751028639264,-460.0,0.00019178,2]
[368115394,1751028639274,-514.87927659,0.00019178,2]
[368115395,1751028639283,-460.0,0.00019178,2]
[368115396,1751028639293,-104.35164117,0.00019178,2]
[368115397,1751028639307,-356.84792242,0.00019178,2]
[368115398,1751028639316,-460.0,0.00019178,2]
[368115399,1751028639326,-297.94059084,0.00019178,2]
[368115400,1751028639335,-460.0,0.00019178,2]
[368115401,1751028639344,-460.0,0.00019178,2]
[368115402,1751028639354,-460.0,0.00019178,2]
[368115403,1751028639363,-460.0,0.00019178,2]
[368115404,1751028639372,-460.0,0.00019178,2]
[368115405,1751028639382,-460.0,0.00019178,2]
[368115406,1751028639391,-460.0,0.00019178,2]
[368115407,1751028639401,-460.0,0.00019178,2]
[368115408,1751028639410,-460.0,0.00019178,2]
[368115409,1751028639419,-460.0,0.00019178,2]
[368115410,1751028639429,-460.0,0.00019178,2]
[368115411,1751028639438,-460.0,0.00019178,2]
[368115412,1751028639447,-462.51052273,0.00019178,2]
[368115413,1751028639457,-228.98355165,0.00019178,2]
[368115414,1751028639466,-265.00709551,0.00019178,2]
[368115415,1751028639479,-194.99290449,0.00019178,2]
[368115416,1751028639489,-460.0,0.00019178,2]
[368115417,1751028639498,-460.0,0.00019178,2]
[368115418,1751028639507,-460.0,0.00019178,2]
[368115419,1751028639517,-460.0,0.00019178,2]
[368115420,1751028639526,-500.0,0.00019178,2]
[368115421,1751028639535,-460.0,0.00019178,2]
[368115422,1751028639545,-466.71687696,0.00019178,2]
[368115423,1751028639555,-460.0,0.00019178,2]
[368115424,1751028639566,-460.0,0.00019178,2]
[368115425,1751028639576,-460.0,0.00019178,2]
[368115426,1751028639586,-250.6460273,0.00019178,2]
[368115427,1751028639595,-460.0,0.00019178,2]
[368115428,1751028639604,-460.0,0.00019178,2]
[368115429,1751028639614,-321.95001465,0.00019178,2]
[368115430,1751028639627,-138.04998535,0.00019178,2]
[368115431,1751028639636,-460.0,0.00019178,2]
[368115432,1751028639646,-443.46265963,0.00019178,2]
[368115433,1751028639657,-460.0,0.00019178,2]
[368115434,1751028639667,-460.0,0.00019178,2]
[368115435,1751028639676,-460.0,0.00019178,2]
[368115436,1751028639686,-460.0,0.00019178,2]
[368115437,1751028639695,-460.0,0.00019178,2]
[368115438,1751028639705,-460.0,0.00019178,2]
[368115439,1751028639715,-429.10236389,0.00019178,2]